Cogmind - Beta 14 @@@ ROGUE MODE // 2024.09.03 @ 16:43:07 Player: OctagonalPrism Result: Destroyed by G-34 Mercenary with Small Laser Performance ------------- Evolutions (0) 0 Regions Visited (1) 200 Robots Destroyed (21) 105 Value Destroyed (528) 528 Prototype IDs (2) 40 Alien Tech Used (0) 0 Bonus (0) 0 TOTAL SCORE: 873 Bonus ------- None Cogmind --------- Core Integrity 0/250 Matter 292/300 Energy 263/265 System Corruption 0% Temperature Cool (6) Movement Treading (160) Location -10/Materials Parts ------- > --- POWER (1) -------- Improved Ion Engine > --- PROPULSION (2) --- Improved Treads Improved Treads > --- UTILITY (2) ------ Large Storage Unit Improved Terrain Scanner > --- WEAPON (2) ------- Light Assault Rifle Light Assault Rifle > --- INVENTORY (15) --- Improved Ion Engine Hacking Suite Grenade Launcher Peak State ------------ > --- POWER ------------ Improved Ion Engine > --- PROPULSION ------- Improved Treads Improved Treads > --- UTILITY ---------- Small Storage Unit Improved Terrain Scanner > --- WEAPON ----------- Small Laser Light Assault Rifle > --- INVENTORY -------- Improved Ion Engine Light Treads Light Treads [Rating: 12] Favorites ----------- Power Improved Ion Engine Engine Improved Ion Engine Propulsion Improved Treads Treads Improved Treads Utility Improved Terrain Scanner Device Improved Terrain Scanner Storage Medium Storage Unit Weapon Light Assault Rifle Energy Gun Small Laser Ballistic Gun Light Assault Rifle Build | -11 -10 ------- Run | Yrd Mat Slots Evolved . | . . Power . | . . Propulsion . | . . Utility . | . . Weapon . | . . Parts Attached 16 | 7 9 Power 3 | 1 2 Engine 3 | 1 2 Core . | . . Reactor . | . . Propulsion 6 | 2 4 Treads 6 | 2 4 Leg . | . . Wheel . | . . Hover . | . . Flight . | . . Utility 4 | 2 2 Device 1 | 1 . Storage 3 | 1 2 Processor . | . . Hackware . | . . Protection . | . . Artifact . | . . Weapon 3 | 2 1 Energy Gun 1 | 1 . Energy Cannon . | . . Ballistic Gun 2 | 1 1 Ballistic Cannon . | . . Launcher . | . . Special Weapon . | . . Impact Weapon . | . . Slashing Weapon . | . . Piercing Weapon . | . . Special Melee Weapon . | . . Unidentified Prototypes . | . . Parts Lost 2 | . 2 Power 1 | . 1 Propulsion 1 | . 1 Utility . | . . Weapon . | . . Highest Loss Streak 1 | . 1 To Critical Strikes . | . . Average Slot Usage (%) 94 | . 94 Engine 13 | . 13 Treads 23 | . 23 Device 14 | . 14 Storage 14 | . 14 Energy Gun 9 | . 9 Ballistic Gun 18 | . 18 Peak Build Rating 12 | 9 12 Average Rating 10 | 4 11 On Entrance 4 | . 9 Naked Turns . | . . Heaviest Build 30 | 13 30 Greatest Support 46 | 40 46 Greatest Overweight (x) . | . . Average Overweight (x) . | . . Largest Inventory Capacity 15 | 8 15 Average Capacity 9 | 6 9 Most Carried 4 | 1 4 Average Carried 1 | . 1 Final Capacity 15 | 8 15 Final Carried 3 | 1 3 Class Distribution -------------------- 100% | Mutant Dominant Class ---------------- Mutant | -10/Materials Resources | -11 -10 ----------- Run | Yrd Mat Matter Collected 463 | 272 191 Remotely . | . . Salvage Created 698 | 40 658 Parts 40 | 8 32 Haulers Intercepted 1 | . 1 Recyclers Shooed . | . . Parts Field Recycled . | . . Retrieved Matter . | . . Parts Self-Destructed . | . . Prevented . | . . Kills | -11 -10 ------- Run | Yrd Mat Combat Hostiles Destroyed 15 | . 15 Guns 15 | . 15 Classes Destroyed 6 | 1 5 Tunneler 2 | 2 . Hauler 1 | . 1 Operator 2 | . 2 Watcher 1 | . 1 Swarmer 3 | . 3 Grunt 12 | . 12 Best Kill Streak 3 | 2 3 Combat Bots Only 3 | . 3 Max Kills in Single Turn 1 | 1 1 Gunslinging . | . . Exploded . | . . Melee . | . . Uniques/NPCs Destroyed . | . . Combat | -11 -10 -------- Run | Yrd Mat Hostile Shots Fired 105 | . 105 Missed 25 | . 25 Damage Taken 910 | . 910 Core 255 | . 255 Absorbed by Shields . | . . Core Remaining (%) 100 | 100 . Volleys Fired 113 | 2 111 Largest 2 | 2 2 Hottest 60 | 60 60 Shots Fired 208 | 4 204 Gun 208 | 4 204 Cannon . | . . Launcher . | . . Special . | . . Kinetic 117 | 2 115 Thermal 91 | 2 89 Explosive . | . . Electromagnetic . | . . Robot Hit Streak 8 | 3 8 Robot Miss Streak 7 | . 7 Penetration Max . | . . Secondary Targets . | . . Shots Hit Robots 120 | 3 117 Core Hits 45 | 2 43 Critical Kills 1 | . 1 Critical Parts Destroyed . | . . Critical Strikes 1 | . 1 Destroy 1 | . 1 Melee Attacks . | . . Impact . | . . Slashing . | . . Piercing . | . . Sneak Attacks . | . . Combat Hostiles . | . . Follow-up Attacks . | . . Damage Inflicted 1172 | 26 1146 Guns 1172 | 26 1146 Cannons . | . . Explosions . | . . Melee . | . . Ramming . | . . Kinetic 544 | 16 528 Thermal 628 | 10 618 Explosive . | . . Electromagnetic . | . . Impact . | . . Slashing . | . . Piercing . | . . Highest Corruption . | . . Average Corruption . | . . Corruption Purged . | . . Corruption Blocked . | . . Overload Shots . | . . Overflow Damage . | . . Projectiles . | . . Explosions . | . . Melee . | . . Knockbacks . | . . Impact . | . . Kinetic . | . . Secondary . | . . Self-Inflicted Damage . | . . Shots . | . . Rammed . | . . Targets Rammed . | . . Kicked . | . . Crushed . | . . Highest Temperature 221 | 20 221 Average Temperature 49 | 15 49 Received Heat Transfer 420 | . 420 Siege Activations . | . . Robots Corrupted . | . . Combat Hostiles . | . . Parts Fried . | . . Impact Corruptions . | . . Robots Melted . | . . Combat Hostiles . | . . Parts Melted 1 | . 1 Heat Transferred 1450 | 25 1425 Parts Sabotaged . | . . Parts Stolen . | . . Parts Stripped . | . . Power Chain Reactions . | . . Alert | -11 -10 ------- Run | Yrd Mat Peak Influence 286 | 10 286 Initial 6 | . 6 Average 133 | 1 140 Maximum Alert Level 1 | . 1 Low Security (%) 77 | 100 76 Level 1 22 | . 23 Level 2 . | . . Level 3 . | . . Level 4 . | . . Level 5 . | . . High Security . | . . Max Security . | . . Squads Dispatched 7 | . 7 Investigation 5 | . 5 Extermination . | . . Reinforcement 2 | . 2 Assault . | . . Garrison . | . . Intercept . | . . Searches Triggered . | . . Construction Impeded . | . . Haulers Reinforced . | . . Active Scanning Responses . | . . Cargo Convoy Interrupts . | . . Stealth | -11 -10 --------- Run | Yrd Mat Distress Signals 1 | . 1 Communications Jammed . | . . Distress Signals . | . . Times Spotted 38 | . 38 Peak Tracking Total 5 | . 5 Tactical Retreats 1 | . 1 Traps | -11 -10 ------- Run | Yrd Mat Traps Triggered . | . . Indirectly . | . . Trap Hack Attempts . | . . Triggered . | . . Disarmed . | . . Reprogrammed . | . . Reused . | . . Traps Extracted . | . . Installed . | . . Triggered . | . . Machines | -11 -10 ---------- Run | Yrd Mat Machines Disabled . | . . Max in Single Turn . | . . Machines Repaired . | . . Machines Dismantled . | . . Machines Sabotaged . | . . Overloaded Fab Kills . | . . Hacking | -11 -10 --------- Run | Yrd Mat Machines Accessed 7 | . 7 Terminals 5 | . 5 Fabricators . | . . Repair Stations . | . . Recycling Units 2 | . 2 Scanalyzers . | . . Garrison Access . | . . Total Hacks 20 | . 20 Successful 13 | . 13 Failed 7 | . 7 Catastrophic 1 | . 1 Database Lockouts . | . . Manual 16 | . 16 Terminals 17 | . 17 Fabricators . | . . Repair Stations . | . . Recycling Units 3 | . 3 Scanalyzers . | . . Garrison Access . | . . Terminal Hacks 4 | . 4 Prototype ID Bank 1 | . 1 Terminal Index 1 | . 1 Locate Traps 2 | . 2 Fabricator Hacks . | . . Repair Station Hacks . | . . Recycling Unit Hacks 1 | . 1 Report Inventory 1 | . 1 Scanalyzer . | . . Garrison Access Hacks . | . . Unauthorized Hacks 8 | . 8 Terminals 6 | . 6 Assimilate 1 | . 1 Botnet 3 | . 3 Disrupt 1 | . 1 Operators 1 | . 1 Fabricators . | . . Repair Stations . | . . Recycling Units 2 | . 2 Tunnel 2 | . 2 Scanalyzers . | . . Garrison Access . | . . Data Cores Recovered . | . . Used . | . . Hacking Detections 4 | . 4 Full Trace Events 3 | . 3 Feedback Events . | . . Feedback Blocked . | . . Robot Schematics Acquired . | . . Robots Built . | . . Authchips . | . . Time . | . . Total Robot Build Rating . | . . Part Schematics Acquired . | . . Parts Built . | . . Authchips . | . . Time . | . . Total Part Build Rating . | . . Parts Repaired . | . . Time . | . . Parts Recycled . | . . Recycled Matter . | . . Retrieved Matter . | . . Retrieved Components . | . . Parts Scanalyzed . | . . Part Schematics Acquired . | . . Parts Damaged . | . . Bothacking | -11 -10 ------------ Run | Yrd Mat Used RIF Installer . | . . Robots Hacked . | . . Non-combat . | . . Combat . | . . Robot Hacks Applied . | . . Relay Couplers Released . | . . Fabnet Peak Effective % . | . . Robots Rewired . | . . Allies Hacked . | . . Hacks Repelled . | . . Allies | -11 -10 -------- Run | Yrd Mat Total Allies . | . . Largest Group . | . . Highest-Rated Group . | . . Highest-Rated Ally . | . . Total Orders . | . . Ally Attacks . | . . Total Damage . | . . Kills . | . . Allies Corrupted . | . . Allies Melted . | . . Intel | -11 -10 ------- Run | Yrd Mat Robot Analysis Total . | . . Derelict Logs Recovered . | . . Drone Launches . | . . Drone Recoveries . | . . Exploration | -11 -10 ------------- Run | Yrd Mat Turns Passed 1419 | 73 1346 Spaces Moved 665 | 38 627 Core 3 | 3 . Treads 662 | 35 627 Legs . | . . Wheels . | . . Hover . | . . Flight . | . . Fastest Speed 50 | 50 160 Average Speed 159 | 151 160 Slowest Speed 160 | 160 160 Overloaded Moves . | . . Propulsion Burnouts . | . . Robots Hopped . | . . Cave-ins Triggered . | . . Exploration Rate (%) 41 | 4 78 Regions Visited 1 Branch Regions . Pre-discovered Areas 2 | . 2 Known Exits Taken . | . . Unknown Exits Taken 1 | 1 . Scrap Searched . | . . Spaces Dug . | . . Terrain Destroyed . | . . Melee . | . . Projectile . | . . AOE . | . . Terrain Rammed . | . . Walls Destroyed . | . . Machines Disabled . | . . Actions | -11 -10 --------- Run | Yrd Mat Total 838 | 47 791 Wait 31 | . 31 Move 664 | 37 627 Hop . | . . Pick Up 5 | 1 4 Fast Attach 9 | 7 2 Attach 1 | . 1 Detach 1 | . 1 Swap 6 | . 6 Drop 8 | . 8 Fire 113 | 2 111 Melee . | . . Ram . | . . Kick . | . . Crush . | . . Escape Stasis . | . . Rewire . | . . Trap . | . . Miscellaneous . | . . Route ------- -11/Scrapyard -10/Materials (discovered 4 exits: [*Mat x3] / [*Min]) History --------- Turn | Location | Event 12 | -11/Scrapyard | Discovered new exit (range 15) 74 | -11/Scrapyard | Entered Materials 311 | -10/Materials | Build established: Mutant 456 | -10/Materials | Discovered new exit (range 8) 558 | -10/Materials | Discovered new exit (range 15) 605 | -10/Materials | Core integrity fell below 50% 735 | -10/Materials | Core integrity fell below 20% 1052 | -10/Materials | Discovered new exit (range 5) 1247 | -10/Materials | Discovered new exit (range 4) 1420 | -10/Materials | Destroyed by G-34 Mercenary with Small Laser Last Messages --------------- Inventory: Empty >>Force(Tunnel) DISCOVERED[-9/Recycling] ALERT: Suspicious activity at Recycling Unit M002. Dispatching Investigation squad. Connecting with Terminal... >>Prototypes Downloading prototype IDs... Adv. Beam Cannon Imp. EM Shotgun ALERT: Suspicious activity at Terminal M007. Dispatching Investigation squad. Acquired 30 matter. K-01 Serf cleans the Matter Pump. Connecting with Recycling Unit... >>Force(Tunnel) DISCOVERED[-10/Mines] ALERT: Suspicious activity at Recycling Unit M001. Dispatching Investigation squad. K-01 Serf cleans the Matter Pump. Map ----- +----------------------------------------------------+ | # # # ???# #????????#?# | | # # #?? ?????# #??????????# | | " + ##+#########+######## #??????????# | | " # #######??#???????# | | " # #????????????????# | | " ###### ##+#### #????#?????????#?# | | " #??#?# # ?# #???#????##########+ | | #????# # ??# """ """ #????????# ^ # | | ##??## # ## """ """ #??#?????# # | | ###?#### # ## """ """ #??#?#???# # | | ???#?#?# ## ##| #???#????# # | | ???????# ## ## #??#?????# + | | ??????## ## !## """ """ #????????# # | | ?#?#???# ## ## """ """ #????????# ## | | ???????# ## ## """ """ #????????# ## | | ???????# ######## #?#??????# ## | | ???????# #??#???# ########?######+#### | | ###?#??# #??#??## """ #?##### | | #! ##### #????#?# """ #?#!! | | ! ######## """ "T" #?#!! | | ! # "Y" #?#]] | | ! T % """ ###]] """ | | ! ########## ###!! """ | | #! ########??#????## ####!! """ | | ##### ########?###?#####g """ ######## | | ????# # ##??#?# * @ """ # # | | ????# # #???### k""" # # """ | | ????# + " #?#?#?# k # """# """ | | ?#??# # T #?##### % # ! """# """ | | ????# # " ]#?##?##]] ####### # """# | | ##### # #????##]] #???### # """# | | # ########?#?#?#####???#?# # """# """ | | # #?#?????#????#??#????### # # """ | | # #???????????#?#####?#?## + # """ | | #########????##???#??###?#?#??## # # | | ?????????###???##########???#??# # # | | ?????????#????# ########% ######## """ | | ???#????#???? # """"" [# % """ | | ????????? ?? ?# ""T"" #% % """ | | ????????????? # /% "T" | | ????????#??? ?# """ """ # % | | ??????????????# """ """ ### #######+## | | ?????????? ???# """ """ #?# # *% # | | ??????????? ??# #?# + # | | ???????????? ?###########?#### ## # | | ?? ????????????#????#????#?#?# ## # | | ??????????????????##????##???# """"" ## """ # | | ???????????????????##????????# """"" ## """"" # | | ???????????????#???########### """"" ## """"" # | | ???????????????????# ^^ ## """"" # | +----------------------------------------------------+ Best States ------------- Heat Dissipation 25 Energy Generation 12 Energy Capacity 265 Matter Stores 300 Matter Capacity 300 Sight Range 16 Terrain Scan Range 16 Terrain Scan Density 10 Evasion (%) 40 Recoil Reduction 2 Item Schematics ----------------- None Robot Schematics ------------------ None Fabricated ------------ Nothing Alien Tech Used ----------------- None Achievements -------------- None Challenges ------------ None Game ------ Seed JunkDecoyMallet Manual? 0 Play Time 00:17:51 Cumulative 97.2 hours Start 2024.09.03 @ 16:33:36 End 2024.09.03 @ 16:43:07 Sessions 1 Manual Loads 0 Difficulty Rogue Special Mode None Game No. 89 Rogue 89 Adventurer 0 Explorer 0 Win Type - Total 0 Types 0/0/0/0/0/0/0/0/0 Lore% 36 Gallery% 50 Achievement% 38 Wizard Run 0 Options --------- Layout 2 ASCII 0 Keyboard 0 Movement Arrows Keybinds 0 Fullscreen 1 Font 16/Terminus Map View 55x47 Zoom Use 0% Tactical HUD 0 Map Filters NONE Filters NONE Steam 1 RUN: 036ea6a3-5541-47e2-9933-c57f10450363